Workbook

Sheet DotaceMax RES+ 1
A1: Stanovení maximální dotace pro FVE od 10 kW do 5 MWp
B3: FVE - doplňte výkon v kW | K3: =IF(C3<10,0,C3*(-1283*LN(C3)+32182)) -> 0.00
B5: Kapacita akumulace - doplňte kapacitu v kWh | K5: =IF(OR(C5<0.2*C3,C3<10,C3>5000),0,IF(AND(C5>=0.2*C3,C5<=C3),C5*(-1230*LN(C5)+25460),C3*(-1230*LN(C5)+25460))) -> 0.00
B7: Elektrolyzér - doplňte hodinovou výrobu vodíku v Nm3/hod | F7: =1178663.6*G7^0.787 -> 0.00 | G7: =C7 -> 0.0 | K7: =IF(OR(C7<5,C7>1000,C9<0.1*C3,C5>=C3),0,IF(AND(C9<=0.6*C3,(C9+C5)<=C3),(1178663.6*C7^0.787),IF(C5<=0.4*C3,(0.6*C3/C9)*1178663.6*C7^0.787,IF(C5>0.4*C3,((C3-C5)/C9)*1178663.6*C7^0.787,0)))) -> 0.00
B9: Vypočítaný přibližný výkon elektrolyzéru v kW | C9: =IF(C7=0,0,IF(OR(C7<5,C7>1000),"MIMO POVOLENÝ ROZSAH",6.241*C7^0.961)) -> 0
B11: Maximální dotace dle technických parametrů FVE [Kč] | C11: =IF(AND(C3>=10,C3<=5000,K7<=2*K3),0.3*(K3+K5+K7),IF(AND(C3>=10,C3<=5000,K7>2*K3),0.3*(K3+K5)+2*0.3*K3,"FVE MIMO ROZSAH v kW")) -> FVE MIMO ROZSAH v kW | D11: =0.3*(K3+K5+K7) -> 0.00 | F11: =D11-C11 ->  | K11: =SUM(K2:K7) -> 0.00
F12: =0.3*K3-0.6*K7 -> 0.00
B13: odhad celkových nákladů investice v Kč | C13: =SUM($K$3:$K$7) -> 0
F14: Max. dotace (Kč)
B15: Uveďte hodnotu celkových investičních nákladů v Kč dle vašeho rozpočtu | F15: =0.5*C15 -> 0 | G15: max. 50% CV
B17: z toho způsobilých nákladů dle vašeho rozpočtu | F17: =0.3*C17 -> 0 | G17: GBER 30% CZV
C18: =IF(C17>C15,"ZPŮSOBILÉ NÁKLADY NESMÍ PŘEVÝŠIT CELKOVÉ!","") ->  | M18: Velký podnik
B19: Max. výše dotace zohledňující veškerá pravidla výzvy [Kč] | C19: =IF(OR(C3<10,C3>5000),0,MIN(C11,F17,F15)) -> 0

Sheet Graf do 1 MW (hidden)
A1: výkon kW | B1: Jednotková dotace (Kč/kW) | D1: podpora
B2: střešní | C2: pozemní | D2: 35.0%
A3: 1 | B3: =(-1092*LN(A3)+28657)*$D$2 -> 10,030 | C3: =(-814*LN(A3)+25417)*$D$2 -> 8,896
A4: 2 | B4: =(-1092*LN(A4)+28657)*$D$2 -> 9,765 | C4: =(-814*LN(A4)+25417)*$D$2 -> 8,698
A5: 3 | B5: 9,610 | C5: 8,583
A6: 4 | B6: 9,500 | C6: 8,501
A7: 5 | B7: 9,415 | C7: 8,437
A8: 6 | B8: 9,345 | C8: 8,385
A9: 7 | B9: 9,286 | C9: 8,342
A10: 8 | B10: 9,235 | C10: 8,304
A11: 9 | B11: 9,190 | C11: 8,270
A12: 10 | B12: 9,150 | C12: 8,240
A13: 11 | B13: 9,113 | C13: 8,213
A14: 12 | B14: 9,080 | C14: 8,188
A15: 13 | B15: 9,050 | C15: 8,165
A16: 14 | B16: 9,021 | C16: 8,144
A17: 15 | B17: 8,995 | C17: 8,124
A18: 16 | B18: 8,970 | C18: 8,106
A19: 17 | B19: 8,947 | C19: 8,089
A20: 18 | B20: 8,925 | C20: 8,072
A21: 19 | B21: 8,905 | C21: 8,057
A22: 20 | B22: 8,885 | C22: 8,042
A23: 21 | B23: 8,866 | C23: 8,029
A24: 22 | B24: 8,849 | C24: 8,015
A25: 23 | B25: 8,832 | C25: 8,003
A26: 24 | B26: 8,815 | C26: 7,991
A27: 25 | B27: 8,800 | C27: 7,979
A28: 26 | B28: 8,785 | C28: 7,968
A29: 27 | B29: 8,770 | C29: 7,957
A30: 28 | B30: 8,756 | C30: 7,947
A31: 29 | B31: 8,743 | C31: 7,937
A32: 30 | B32: 8,730 | C32: 7,927
A33: 31 | B33: 8,717 | C33: 7,918
A34: 32 | B34: 8,705 | C34: 7,909
A35: 33 | B35: 8,694 | C35: 7,900
A36: 34 | B36: 8,682 | C36: 7,891
A37: 35 | B37: 8,671 | C37: 7,883
A38: 36 | B38: 8,660 | C38: 7,875
A39: 37 | B39: 8,650 | C39: 7,867
A40: 38 | B40: 8,640 | C40: 7,860
A41: 39 | B41: 8,630 | C41: 7,852
A42: 40 | B42: 8,620 | C42: 7,845
A43: 41 | B43: 8,611 | C43: 7,838
A44: 42 | B44: 8,601 | C44: 7,831
A45: 43 | B45: 8,592 | C45: 7,824
A46: 44 | B46: 8,584 | C46: 7,818
A47: 45 | B47: 8,575 | C47: 7,811
A48: 46 | B48: 8,567 | C48: 7,805
A49: 47 | B49: 8,558 | C49: 7,799
A50: 48 | B50: 8,550 | C50: 7,793
A51: 49 | B51: 8,542 | C51: 7,787
A52: 50 | B52: 8,535 | C52: 7,781
A53: 51 | B53: 8,527 | C53: 7,776
A54: 52 | B54: 8,520 | C54: 7,770
A55: 53 | B55: 8,513 | C55: 7,765
A56: 54 | B56: 8,505 | C56: 7,759
A57: 55 | B57: 8,498 | C57: 7,754
A58: 56 | B58: 8,491 | C58: 7,749
A59: 57 | B59: 8,485 | C59: 7,744
A60: 58 | B60: 8,478 | C60: 7,739
A61: 59 | B61: 8,472 | C61: 7,734
A62: 60 | B62: 8,465 | C62: 7,729
A63: 61 | B63: 8,459 | C63: 7,725
A64: 62 | B64: 8,453 | C64: 7,720
A65: 63 | B65: 8,446 | C65: 7,716
A66: 64 | B66: 8,440 | C66: 7,711
A67: 65 | B67: 8,434 | C67: 7,707
A68: 66 | B68: =(-1092*LN(A68)+28657)*$D$2 -> 8,429 | C68: =(-814*LN(A68)+25417)*$D$2 -> 7,702
A69: 67 | B69: 8,423 | C69: 7,698
A70: 68 | B70: 8,417 | C70: 7,694
A71: 69 | B71: 8,412 | C71: 7,690
A72: 70 | B72: 8,406 | C72: 7,686
A73: 71 | B73: 8,401 | C73: 7,682
A74: 72 | B74: 8,395 | C74: 7,678
A75: 73 | B75: 8,390 | C75: 7,674
A76: 74 | B76: 8,385 | C76: 7,670
A77: 75 | B77: 8,380 | C77: 7,666
A78: 76 | B78: 8,375 | C78: 7,662
A79: 77 | B79: 8,370 | C79: 7,658
A80: 78 | B80: 8,365 | C80: 7,655
A81: 79 | B81: 8,360 | C81: 7,651
A82: 80 | B82: 8,355 | C82: 7,648
A83: 81 | B83: 8,350 | C83: 7,644
A84: 82 | B84: 8,346 | C84: 7,640
A85: 83 | B85: 8,341 | C85: 7,637
A86: 84 | B86: 8,336 | C86: 7,634
A87: 85 | B87: 8,332 | C87: 7,630
A88: 86 | B88: 8,327 | C88: 7,627
A89: 87 | B89: 8,323 | C89: 7,624
A90: 88 | B90: 8,319 | C90: 7,620
A91: 89 | B91: 8,314 | C91: 7,617
A92: 90 | B92: 8,310 | C92: 7,614
A93: 91 | B93: 8,306 | C93: 7,611
A94: 92 | B94: 8,302 | C94: 7,608
A95: 93 | B95: 8,298 | C95: 7,605
A96: 94 | B96: 8,294 | C96: 7,602
A97: 95 | B97: 8,289 | C97: 7,599
A98: 96 | B98: 8,285 | C98: 7,596
A99: 97 | B99: 8,281 | C99: 7,593
A100: 98 | B100: 8,278 | C100: 7,590
A101: 99 | B101: 8,274 | C101: 7,587
A102: 100 | B102: 8,270 | C102: 7,584
A103: 101 | B103: 8,266 | C103: 7,581
A104: 102 | B104: 8,262 | C104: 7,578
A105: 103 | B105: 8,259 | C105: 7,576
A106: 104 | B106: 8,255 | C106: 7,573
A107: 105 | B107: 8,251 | C107: 7,570
A108: 106 | B108: 8,248 | C108: 7,567
A109: 107 | B109: 8,244 | C109: 7,565
A110: 108 | B110: 8,240 | C110: 7,562
A111: 109 | B111: 8,237 | C111: 7,559
A112: 110 | B112: 8,233 | C112: 7,557
A113: 111 | B113: 8,230 | C113: 7,554
A114: 112 | B114: 8,227 | C114: 7,552
A115: 113 | B115: 8,223 | C115: 7,549
A116: 114 | B116: 8,220 | C116: 7,547
A117: 115 | B117: 8,216 | C117: 7,544
A118: 116 | B118: 8,213 | C118: 7,542
A119: 117 | B119: 8,210 | C119: 7,539
A120: 118 | B120: 8,207 | C120: 7,537
A121: 119 | B121: 8,203 | C121: 7,534
A122: 120 | B122: 8,200 | C122: 7,532
A123: 121 | B123: 8,197 | C123: 7,530
A124: 122 | B124: 8,194 | C124: 7,527
A125: 123 | B125: 8,191 | C125: 7,525
A126: 124 | B126: 8,188 | C126: 7,523
A127: 125 | B127: 8,185 | C127: 7,520
A128: 126 | B128: 8,182 | C128: 7,518
A129: 127 | B129: 8,179 | C129: 7,516
A130: 128 | B130: 8,176 | C130: 7,514
A131: 129 | B131: 8,173 | C131: 7,511
A132: 130 | B132: =(-1092*LN(A132)+28657)*$D$2 -> 8,170 | C132: =(-814*LN(A132)+25417)*$D$2 -> 7,509
A133: 131 | B133: 8,167 | C133: 7,507
A134: 132 | B134: 8,164 | C134: 7,505
A135: 133 | B135: 8,161 | C135: 7,503
A136: 134 | B136: 8,158 | C136: 7,501
A137: 135 | B137: 8,155 | C137: 7,498
A138: 136 | B138: 8,152 | C138: 7,496
A139: 137 | B139: 8,150 | C139: 7,494
A140: 138 | B140: 8,147 | C140: 7,492
A141: 139 | B141: 8,144 | C141: 7,490
A142: 140 | B142: 8,141 | C142: 7,488
A143: 141 | B143: 8,139 | C143: 7,486
A144: 142 | B144: 8,136 | C144: 7,484
A145: 143 | B145: 8,133 | C145: 7,482
A146: 144 | B146: 8,130 | C146: 7,480
A147: 145 | B147: 8,128 | C147: 7,478
A148: 146 | B148: 8,125 | C148: 7,476
A149: 147 | B149: 8,123 | C149: 7,474
A150: 148 | B150: 8,120 | C150: 7,472
A151: 149 | B151: 8,117 | C151: 7,470
A152: 150 | B152: 8,115 | C152: 7,468
A153: 151 | B153: 8,112 | C153: 7,467
A154: 152 | B154: 8,110 | C154: 7,465
A155: 153 | B155: 8,107 | C155: 7,463
A156: 154 | B156: 8,105 | C156: 7,461
A157: 155 | B157: 8,102 | C157: 7,459
A158: 156 | B158: 8,100 | C158: 7,457
A159: 157 | B159: 8,097 | C159: 7,455
A160: 158 | B160: 8,095 | C160: 7,454
A161: 159 | B161: 8,093 | C161: 7,452
A162: 160 | B162: 8,090 | C162: 7,450
A163: 161 | B163: 8,088 | C163: 7,448
A164: 162 | B164: 8,085 | C164: 7,446
A165: 163 | B165: 8,083 | C165: 7,445
A166: 164 | B166: 8,081 | C166: 7,443
A167: 165 | B167: 8,078 | C167: 7,441
A168: 166 | B168: 8,076 | C168: 7,440
A169: 167 | B169: 8,074 | C169: 7,438
A170: 168 | B170: 8,072 | C170: 7,436
A171: 169 | B171: 8,069 | C171: 7,434
A172: 170 | B172: 8,067 | C172: 7,433
A173: 171 | B173: 8,065 | C173: 7,431
A174: 172 | B174: 8,063 | C174: 7,429
A175: 173 | B175: 8,060 | C175: 7,428
A176: 174 | B176: 8,058 | C176: 7,426
A177: 175 | B177: 8,056 | C177: 7,425
A178: 176 | B178: 8,054 | C178: 7,423
A179: 177 | B179: 8,052 | C179: 7,421
A180: 178 | B180: 8,049 | C180: 7,420
A181: 179 | B181: 8,047 | C181: 7,418
A182: 180 | B182: 8,045 | C182: 7,416
A183: 181 | B183: 8,043 | C183: 7,415
A184: 182 | B184: 8,041 | C184: 7,413
A185: 183 | B185: 8,039 | C185: 7,412
A186: 184 | B186: 8,037 | C186: 7,410
A187: 185 | B187: 8,035 | C187: 7,409
A188: 186 | B188: 8,033 | C188: 7,407
A189: 187 | B189: 8,031 | C189: 7,406
A190: 188 | B190: 8,029 | C190: 7,404
A191: 189 | B191: 8,027 | C191: 7,403
A192: 190 | B192: 8,025 | C192: 7,401
A193: 191 | B193: 8,023 | C193: 7,400
A194: 192 | B194: 8,021 | C194: 7,398
A195: 193 | B195: 8,019 | C195: 7,397
A196: 194 | B196: =(-1092*LN(A196)+28657)*$D$2 -> 8,017 | C196: =(-814*LN(A196)+25417)*$D$2 -> 7,395
A197: 195 | B197: 8,015 | C197: 7,394
A198: 196 | B198: 8,013 | C198: 7,392
A199: 197 | B199: 8,011 | C199: 7,391
A200: 198 | B200: 8,009 | C200: 7,389
... 802 more rows

Sheet Graf nad 1 MW (hidden)
A1: výkon kW | B1: Jednotková dotace (Kč/kW) | D1: podpora
B2: střešní | C2: pozemní | D2: 35.0%
A3: 1000 | B3: =(-586.3*LN(A3)+24950)*$D$2 -> 7,315 | C3: =(-304*LN(A3)+21400)*$D$2 -> 6,755
A4: 1100 | B4: =(-586.3*LN(A4)+24950)*$D$2 -> 7,295 | C4: =(-304*LN(A4)+21400)*$D$2 -> 6,745
A5: 1200 | B5: =(-586.3*LN(A5)+24950)*$D$2 -> 7,278 | C5: 6,736
A6: 1300 | B6: 7,261 | C6: 6,727
A7: 1400 | B7: 7,246 | C7: 6,719
A8: 1500 | B8: 7,232 | C8: 6,712
A9: 1600 | B9: 7,219 | C9: 6,705
A10: 1700 | B10: 7,206 | C10: 6,699
A11: 1800 | B11: 7,194 | C11: 6,692
A12: 1900 | B12: 7,183 | C12: 6,687
A13: 2000 | B13: 7,173 | C13: 6,681
A14: 2100 | B14: 7,163 | C14: 6,676
A15: 2200 | B15: 7,153 | C15: 6,671
A16: 2300 | B16: 7,144 | C16: 6,666
A17: 2400 | B17: 7,135 | C17: 6,662
A18: 2500 | B18: 7,127 | C18: 6,658
A19: 2600 | B19: 7,119 | C19: 6,653
A20: 2700 | B20: 7,111 | C20: 6,649
A21: 2800 | B21: 7,104 | C21: 6,645
A22: 2900 | B22: 7,097 | C22: 6,642
A23: 3000 | B23: 7,090 | C23: 6,638
A24: 3100 | B24: 7,083 | C24: 6,635
A25: 3200 | B25: 7,076 | C25: 6,631
A26: 3300 | B26: 7,070 | C26: 6,628
A27: 3400 | B27: 7,064 | C27: 6,625
A28: 3500 | B28: 7,058 | C28: 6,622
A29: 3600 | B29: 7,052 | C29: 6,619
A30: 3700 | B30: 7,047 | C30: 6,616
A31: 3800 | B31: 7,041 | C31: 6,613
A32: 3900 | B32: 7,036 | C32: 6,610
A33: 4000 | B33: 7,031 | C33: 6,608
A34: 4100 | B34: 7,025 | C34: 6,605
A35: 4200 | B35: 7,021 | C35: 6,602
A36: 4300 | B36: 7,016 | C36: 6,600
A37: 4400 | B37: 7,011 | C37: 6,597
A38: 4500 | B38: 7,006 | C38: 6,595
A39: 4600 | B39: 7,002 | C39: 6,593
A40: 4700 | B40: 6,997 | C40: 6,590
A41: 4800 | B41: 6,993 | C41: 6,588
A42: 4900 | B42: 6,989 | C42: 6,586
A43: 5000 | B43: 6,985 | C43: 6,584
A44: 5100 | B44: 6,981 | C44: 6,582
A45: 5200 | B45: 6,977 | C45: 6,580
A46: 5300 | B46: 6,973 | C46: 6,578
A47: 5400 | B47: 6,969 | C47: 6,576
A48: 5500 | B48: 6,965 | C48: 6,574
A49: 5600 | B49: 6,961 | C49: 6,572
A50: 5700 | B50: 6,958 | C50: 6,570
A51: 5800 | B51: 6,954 | C51: 6,568
A52: 5900 | B52: 6,951 | C52: 6,566
A53: 6000 | B53: 6,947 | C53: 6,564
A54: 6100 | B54: 6,944 | C54: 6,563
A55: 6200 | B55: 6,941 | C55: 6,561
A56: 6300 | B56: 6,937 | C56: 6,559
A57: 6400 | B57: 6,934 | C57: 6,558
A58: 6500 | B58: 6,931 | C58: 6,556
A59: 6600 | B59: 6,928 | C59: 6,554
A60: 6700 | B60: 6,925 | C60: 6,553
A61: 6800 | B61: 6,922 | C61: 6,551
A62: 6900 | B62: 6,919 | C62: 6,550
A63: 7000 | B63: 6,916 | C63: 6,548
A64: 7100 | B64: 6,913 | C64: 6,546
A65: 7200 | B65: 6,910 | C65: 6,545
A66: 7300 | B66: 6,907 | C66: 6,544
A67: 7400 | B67: 6,904 | C67: 6,542
A68: 7500 | B68: =(-586.3*LN(A68)+24950)*$D$2 -> 6,902 | C68: =(-304*LN(A68)+21400)*$D$2 -> 6,541
A69: 7600 | B69: 6,899 | C69: 6,539
A70: 7700 | B70: 6,896 | C70: 6,538
A71: 7800 | B71: 6,893 | C71: 6,536
A72: 7900 | B72: 6,891 | C72: 6,535
A73: 8000 | B73: 6,888 | C73: 6,534
A74: 8100 | B74: 6,886 | C74: 6,532
A75: 8200 | B75: 6,883 | C75: 6,531
A76: 8300 | B76: 6,881 | C76: 6,530
A77: 8400 | B77: 6,878 | C77: 6,529
A78: 8500 | B78: 6,876 | C78: 6,527
A79: 8600 | B79: 6,873 | C79: 6,526
A80: 8700 | B80: 6,871 | C80: 6,525
A81: 8800 | B81: 6,869 | C81: 6,524
A82: 8900 | B82: 6,866 | C82: 6,522
A83: 9000 | B83: 6,864 | C83: 6,521
A84: 9100 | B84: 6,862 | C84: 6,520
A85: 9200 | B85: 6,860 | C85: 6,519
A86: 9300 | B86: 6,857 | C86: 6,518
A87: 9400 | B87: 6,855 | C87: 6,517
A88: 9500 | B88: 6,853 | C88: 6,515
A89: 9600 | B89: 6,851 | C89: 6,514
A90: 9700 | B90: 6,849 | C90: 6,513
A91: 9800 | B91: 6,847 | C91: 6,512
A92: 9900 | B92: 6,845 | C92: 6,511
A93: 10000 | B93: 6,842 | C93: 6,510
A94: 10100 | B94: 6,840 | C94: 6,509
A95: 10200 | B95: 6,838 | C95: 6,508
A96: 10300 | B96: 6,836 | C96: 6,507
A97: 10400 | B97: 6,834 | C97: 6,506
A98: 10500 | B98: 6,832 | C98: 6,505
A99: 10600 | B99: 6,831 | C99: 6,504
A100: 10700 | B100: 6,829 | C100: 6,503
A101: 10800 | B101: 6,827 | C101: 6,502
A102: 10900 | B102: 6,825 | C102: 6,501
A103: 11000 | B103: 6,823 | C103: 6,500
A104: 11100 | B104: 6,821 | C104: 6,499
A105: 11200 | B105: 6,819 | C105: 6,498
A106: 11300 | B106: 6,817 | C106: 6,497
A107: 11400 | B107: 6,816 | C107: 6,496
A108: 11500 | B108: 6,814 | C108: 6,495
A109: 11600 | B109: 6,812 | C109: 6,494
A110: 11700 | B110: 6,810 | C110: 6,493
A111: 11800 | B111: 6,809 | C111: 6,492
A112: 11900 | B112: 6,807 | C112: 6,492
A113: 12000 | B113: 6,805 | C113: 6,491
A114: 12100 | B114: 6,803 | C114: 6,490
A115: 12200 | B115: 6,802 | C115: 6,489
A116: 12300 | B116: 6,800 | C116: 6,488
A117: 12400 | B117: 6,798 | C117: 6,487
A118: 12500 | B118: 6,797 | C118: 6,486
A119: 12600 | B119: 6,795 | C119: 6,485
A120: 12700 | B120: 6,793 | C120: 6,485
A121: 12800 | B121: 6,792 | C121: 6,484
A122: 12900 | B122: 6,790 | C122: 6,483
A123: 13000 | B123: 6,789 | C123: 6,482
A124: 13100 | B124: 6,787 | C124: 6,481
A125: 13200 | B125: 6,786 | C125: 6,480
A126: 13300 | B126: 6,784 | C126: 6,480
A127: 13400 | B127: 6,782 | C127: 6,479
A128: 13500 | B128: 6,781 | C128: 6,478
A129: 13600 | B129: 6,779 | C129: 6,477
A130: 13700 | B130: 6,778 | C130: 6,477
A131: 13800 | B131: 6,776 | C131: 6,476
A132: 13900 | B132: =(-586.3*LN(A132)+24950)*$D$2 -> 6,775 | C132: =(-304*LN(A132)+21400)*$D$2 -> 6,475
A133: 14000 | B133: 6,773 | C133: 6,474
A134: 14100 | B134: 6,772 | C134: 6,473
A135: 14200 | B135: 6,771 | C135: 6,473
A136: 14300 | B136: 6,769 | C136: 6,472
A137: 14400 | B137: 6,768 | C137: 6,471
A138: 14500 | B138: 6,766 | C138: 6,470
A139: 14600 | B139: 6,765 | C139: 6,470
A140: 14700 | B140: 6,763 | C140: 6,469
A141: 14800 | B141: 6,762 | C141: 6,468
A142: 14900 | B142: 6,761 | C142: 6,468
A143: 15000 | B143: 6,759 | C143: 6,467
A144: 15100 | B144: 6,758 | C144: 6,466
A145: 15200 | B145: 6,757 | C145: 6,465
A146: 15300 | B146: 6,755 | C146: 6,465
A147: 15400 | B147: 6,754 | C147: 6,464
A148: 15500 | B148: 6,753 | C148: 6,463
A149: 15600 | B149: 6,751 | C149: 6,463
A150: 15700 | B150: 6,750 | C150: 6,462
A151: 15800 | B151: 6,749 | C151: 6,461
A152: 15900 | B152: 6,747 | C152: 6,461
A153: 16000 | B153: 6,746 | C153: 6,460
A154: 16100 | B154: 6,745 | C154: 6,459
A155: 16200 | B155: 6,743 | C155: 6,459
A156: 16300 | B156: 6,742 | C156: 6,458
A157: 16400 | B157: 6,741 | C157: 6,457
A158: 16500 | B158: 6,740 | C158: 6,457
A159: 16600 | B159: 6,738 | C159: 6,456
A160: 16700 | B160: 6,737 | C160: 6,455
A161: 16800 | B161: 6,736 | C161: 6,455
A162: 16900 | B162: 6,735 | C162: 6,454
A163: 17000 | B163: 6,734 | C163: 6,454
A164: 17100 | B164: 6,732 | C164: 6,453
A165: 17200 | B165: 6,731 | C165: 6,452
A166: 17300 | B166: 6,730 | C166: 6,452
A167: 17400 | B167: 6,729 | C167: 6,451
A168: 17500 | B168: 6,728 | C168: 6,450
A169: 17600 | B169: 6,726 | C169: 6,450
A170: 17700 | B170: 6,725 | C170: 6,449
A171: 17800 | B171: 6,724 | C171: 6,449
A172: 17900 | B172: 6,723 | C172: 6,448
A173: 18000 | B173: 6,722 | C173: 6,447
A174: 18100 | B174: 6,721 | C174: 6,447
A175: 18200 | B175: 6,720 | C175: 6,446
A176: 18300 | B176: 6,718 | C176: 6,446
A177: 18400 | B177: 6,717 | C177: 6,445
A178: 18500 | B178: 6,716 | C178: 6,445
A179: 18600 | B179: 6,715 | C179: 6,444
A180: 18700 | B180: 6,714 | C180: 6,443
A181: 18800 | B181: 6,713 | C181: 6,443
A182: 18900 | B182: 6,712 | C182: 6,442
A183: 19000 | B183: 6,711 | C183: 6,442
A184: 19100 | B184: 6,710 | C184: 6,441
A185: 19200 | B185: 6,709 | C185: 6,441
A186: 19300 | B186: 6,708 | C186: 6,440
A187: 19400 | B187: 6,707 | C187: 6,440
A188: 19500 | B188: 6,705 | C188: 6,439
A189: 19600 | B189: 6,704 | C189: 6,438
A190: 19700 | B190: 6,703 | C190: 6,438
A191: 19800 | B191: 6,702 | C191: 6,437
A192: 19900 | B192: 6,701 | C192: 6,437
A193: 20000 | B193: 6,700 | C193: 6,436
A194: 20100 | B194: 6,699 | C194: 6,436
A195: 20200 | B195: 6,698 | C195: 6,435
A196: 20300 | B196: =(-586.3*LN(A196)+24950)*$D$2 -> 6,697 | C196: =(-304*LN(A196)+21400)*$D$2 -> 6,435
A197: 20400 | B197: 6,696 | C197: 6,434
A198: 20500 | B198: 6,695 | C198: 6,434
A199: 20600 | B199: 6,694 | C199: 6,433
A200: 20700 | B200: 6,693 | C200: 6,433
... 793 more rows
